[Event "Early-Titled-Tuesday-Blitz-May-28-2024"]
[Site "Chess.com"]
[Date "2024.05.28"]
[Round "6"]
[White "Lady_Nika"]
[Black "Bykov_Egor"]
[Result "0-1"]
[WhiteElo "2513"]
[BlackElo "2660"]
[TimeControl "180+1"]
[EndTime "9:08:51 PDT"]
[Termination "Bykov_Egor won by resignation"]

1. e4 {[%clk 0:02:59.9]} 1... e5 {[%clk 0:02:58]} 2. Nf3 {[%clk 0:02:59.9]} 2...
Nc6 {[%clk 0:02:58.5]} 3. Bb5 {[%clk 0:03:00.2]} 3... a6 {[%clk 0:02:58.3]} 4.
Ba4 {[%clk 0:03:00.3]} 4... Nf6 {[%clk 0:02:58.4]} 5. O-O {[%clk 0:03:00.5]}
5... Be7 {[%clk 0:02:58.9]} 6. c3 {[%clk 0:02:59.7]} 6... Nxe4 {[%clk
0:02:50.9]} 7. Bxc6 {[%clk 0:02:53.9]} 7... dxc6 {[%clk 0:02:48.1]} 8. Nxe5
{[%clk 0:02:50.2]} 8... O-O {[%clk 0:02:45.1]} 9. d4 {[%clk 0:02:48.4]} 9... Nd6
{[%clk 0:02:30.8]} 10. Re1 {[%clk 0:02:46.4]} 10... Re8 {[%clk 0:02:26.2]} 11.
Nd2 {[%clk 0:02:43.1]} 11... Bf5 {[%clk 0:02:06.9]} 12. Qb3 {[%clk 0:02:39.7]}
12... Be6 {[%clk 0:02:00.2]} 13. Qc2 {[%clk 0:02:35.4]} 13... Bf8 {[%clk
0:02:00.3]} 14. Ndf3 {[%clk 0:02:30.6]} 14... f6 {[%clk 0:01:58.5]} 15. Nd3
{[%clk 0:02:28.9]} 15... Bf5 {[%clk 0:01:58]} 16. Bf4 {[%clk 0:02:22.9]} 16...
Qd7 {[%clk 0:01:48.3]} 17. Qb3+ {[%clk 0:02:16.8]} 17... Qf7 {[%clk 0:01:39.4]}
18. Nc5 {[%clk 0:02:14.7]} 18... b6 {[%clk 0:01:13]} 19. Qxf7+ {[%clk
0:02:08.5]} 19... Kxf7 {[%clk 0:01:10.2]} 20. Nb3 {[%clk 0:02:08.6]} 20... g5
{[%clk 0:01:02.7]} 21. Bxd6 {[%clk 0:01:51.3]} 21... Bxd6 {[%clk 0:01:02]} 22.
h3 {[%clk 0:01:51.7]} 22... h5 {[%clk 0:01:00.7]} 23. Nh2 {[%clk 0:01:48.4]}
23... a5 {[%clk 0:00:57.8]} 24. Nd2 {[%clk 0:01:48.1]} 24... b5 {[%clk
0:00:49.8]} 25. Nhf1 {[%clk 0:01:44.9]} 25... h4 {[%clk 0:00:38.3]} 26. Ne3
{[%clk 0:01:43.2]} 26... Be6 {[%clk 0:00:38.8]} 27. Ne4 {[%clk 0:01:40.7]} 27...
Bf8 {[%clk 0:00:38.5]} 28. f3 {[%clk 0:01:31.9]} 28... Rad8 {[%clk 0:00:36.3]}
29. a3 {[%clk 0:01:24.9]} 29... Kg6 {[%clk 0:00:34.5]} 30. Ng4 {[%clk
0:01:22.1]} 30... Be7 {[%clk 0:00:19.4]} 31. Nef2 {[%clk 0:01:12.2]} 31... Bc8
{[%clk 0:00:17.7]} 32. Re2 {[%clk 0:01:07.2]} 32... Bd6 {[%clk 0:00:18.1]} 33.
Rae1 {[%clk 0:01:06.6]} 33... Rxe2 {[%clk 0:00:17.7]} 34. Rxe2 {[%clk
0:01:07.5]} 34... Kf7 {[%clk 0:00:12.8]} 35. Ne4 {[%clk 0:01:06.6]} 35... Be7
{[%clk 0:00:13]} 36. Nef2 {[%clk 0:01:02.8]} 36... b4 {[%clk 0:00:13.3]} 37.
axb4 {[%clk 0:01:02.6]} 37... axb4 {[%clk 0:00:14.2]} 38. Nd3 {[%clk 0:01:01.3]}
38... Ba6 {[%clk 0:00:14.2]} 39. Ngf2 {[%clk 0:01:01.5]} 39... Rb8 {[%clk
0:00:12.2]} 40. cxb4 {[%clk 0:00:44.3]} 40... Bxb4 {[%clk 0:00:11.3]} 41. Rc2
{[%clk 0:00:44.4]} 41... Ba5 {[%clk 0:00:06.3]} 42. Rxc6 {[%clk 0:00:43.7]}
42... Bb6 {[%clk 0:00:06.9]} 43. Nc5 {[%clk 0:00:42]} 43... Bb5 {[%clk
0:00:06.3]} 44. Nd7 {[%clk 0:00:08.6]} 44... Rd8 {[%clk 0:00:06.3]} 45. Rxf6+
{[%clk 0:00:08.7]} 45... Ke7 {[%clk 0:00:06.8]} 46. Rxb6 {[%clk 0:00:08]} 46...
cxb6 {[%clk 0:00:06.5]} 47. Nxb6 {[%clk 0:00:08.8]} 47... Rxd4 {[%clk
0:00:06.7]} 48. Ne4 {[%clk 0:00:09.2]} 48... Rd1+ {[%clk 0:00:04]} 49. Kf2
{[%clk 0:00:09.4]} 49... Bc6 {[%clk 0:00:03.1]} 50. Nxg5 {[%clk 0:00:08.9]}
50... Rd2+ {[%clk 0:00:03.5]} 51. Ke3 {[%clk 0:00:09.1]} 51... Rxg2 {[%clk
0:00:03.5]} 52. Ne4 {[%clk 0:00:09]} 52... Rxb2 {[%clk 0:00:03]} 53. Nc4 {[%clk
0:00:09]} 53... Rh2 {[%clk 0:00:03.3]} 54. Ne5 {[%clk 0:00:09.1]} 54... Bxe4
{[%clk 0:00:03]} 55. Kxe4 {[%clk 0:00:08.7]} 55... Rxh3 {[%clk 0:00:03.6]} 56.
Kf4 {[%clk 0:00:08.9]} 56... Kf6 {[%clk 0:00:02.7]} 57. Ng4+ {[%clk 0:00:08.9]}
57... Ke6 {[%clk 0:00:03.4]} 58. Nf2 {[%clk 0:00:09.2]} 58... Rh2 {[%clk
0:00:04.1]} 59. Ng4 {[%clk 0:00:09]} 59... Rc2 {[%clk 0:00:03.5]} 60. Ne3 {[%clk
0:00:09.2]} 60... Rc3 {[%clk 0:00:03.7]} 61. Ng4 {[%clk 0:00:05.8]} 61... Rc4+
{[%clk 0:00:03.4]} 62. Ke3 {[%clk 0:00:04.5]} 62... Kf5 {[%clk 0:00:03.1]} 63.
Nf2 {[%clk 0:00:03.1]} 63... Rc3+ {[%clk 0:00:03.3]} 64. Ke2 {[%clk 0:00:03.5]}
64... Kf4 {[%clk 0:00:03.3]} 65. Ne4 {[%clk 0:00:03.8]} 65... Re3+ {[%clk
0:00:02.8]} 66. Kf2 {[%clk 0:00:03.9]} 66... Rxf3+ {[%clk 0:00:03.1]} 67. Kg2
{[%clk 0:00:04.8]} 67... Kxe4 {[%clk 0:00:04]} 0-1

[Event "Early-Titled-Tuesday-Blitz-May-28-2024"]
[Site "Chess.com"]
[Date "2024.05.28"]
[Round "6"]
[White "youngKID"]
[Black "Grischuk"]
[Result "0-1"]
[WhiteElo "2880"]
[BlackElo "3118"]
[TimeControl "180+1"]
[EndTime "9:08:54 PDT"]
[Termination "Grischuk won on time"]

1. e3 {[%clk 0:03:00]} 1... Nf6 {[%clk 0:02:50.3]} 2. Nf3 {[%clk 0:02:59.1]}
2... d5 {[%clk 0:02:48.1]} 3. c4 {[%clk 0:02:58.4]} 3... c6 {[%clk 0:02:47.6]}
4. Nc3 {[%clk 0:02:57.7]} 4... e6 {[%clk 0:02:47.5]} 5. b3 {[%clk 0:02:56.2]}
5... Bd6 {[%clk 0:02:47.7]} 6. Bb2 {[%clk 0:02:56.3]} 6... O-O {[%clk
0:02:48.4]} 7. Be2 {[%clk 0:02:52.7]} 7... e5 {[%clk 0:02:46.4]} 8. d4 {[%clk
0:02:41.1]} 8... e4 {[%clk 0:02:45.4]} 9. Nd2 {[%clk 0:02:38.5]} 9... Be6 {[%clk
0:02:38.5]} 10. Rc1 {[%clk 0:02:36.2]} 10... Re8 {[%clk 0:02:29.9]} 11. cxd5
{[%clk 0:02:29.3]} 11... cxd5 {[%clk 0:02:30.8]} 12. Nb5 {[%clk 0:02:29.4]}
12... Nc6 {[%clk 0:02:31.5]} 13. Nxd6 {[%clk 0:02:29.5]} 13... Qxd6 {[%clk
0:02:32.4]} 14. O-O {[%clk 0:02:28.5]} 14... Rac8 {[%clk 0:02:18.8]} 15. a3
{[%clk 0:02:23.4]} 15... Ne7 {[%clk 0:02:04.5]} 16. h3 {[%clk 0:01:51.2]} 16...
Nf5 {[%clk 0:01:51]} 17. Rxc8 {[%clk 0:01:47.8]} 17... Rxc8 {[%clk 0:01:50.7]}
18. Qb1 {[%clk 0:01:45.1]} 18... h5 {[%clk 0:01:33.8]} 19. Rc1 {[%clk
0:01:43.1]} 19... b6 {[%clk 0:01:23.5]} 20. Rxc8+ {[%clk 0:01:40.4]} 20... Bxc8
{[%clk 0:01:24.4]} 21. Qc1 {[%clk 0:01:37.8]} 21... Bd7 {[%clk 0:01:21.4]} 22.
a4 {[%clk 0:01:37.7]} 22... g5 {[%clk 0:01:10.3]} 23. Ba3 {[%clk 0:01:32.7]}
23... Qb8 {[%clk 0:01:10.9]} 24. Nf1 {[%clk 0:01:02.2]} 24... Kg7 {[%clk
0:01:10.6]} 25. Qe1 {[%clk 0:00:43.4]} 25... h4 {[%clk 0:00:32.3]} 26. Nd2
{[%clk 0:00:38.8]} 26... Kg6 {[%clk 0:00:26.6]} 27. Nb1 {[%clk 0:00:31]} 27...
Nh6 {[%clk 0:00:23.5]} 28. Qb4 {[%clk 0:00:29.3]} 28... g4 {[%clk 0:00:21.1]}
29. hxg4 {[%clk 0:00:29.6]} 29... Bxg4 {[%clk 0:00:21.1]} 30. Bf1 {[%clk
0:00:29.1]} 30... Nf5 {[%clk 0:00:19.4]} 31. Qf8 {[%clk 0:00:24]} 31... Qc7
{[%clk 0:00:15.1]} 32. Qb4 {[%clk 0:00:09.1]} 32... Qc2 {[%clk 0:00:08.5]} 33.
Qe1 {[%clk 0:00:06.1]} 33... h3 {[%clk 0:00:06.6]} 34. Nd2 {[%clk 0:00:04.1]}
34... hxg2 {[%clk 0:00:05.9]} 35. Bxg2 {[%clk 0:00:04.3]} 35... Nh4 {[%clk
0:00:06.1]} 36. Bd6 {[%clk 0:00:03.3]} 36... Bf3 {[%clk 0:00:05.1]} 37. Bf1
{[%clk 0:00:01.2]} 37... Ng4 {[%clk 0:00:03.8]} 38. Bh3 {[%clk 0:00:01.2]} 38...
Qc6 {[%clk 0:00:01.9]} 39. Bg3 {[%clk 0:00:01.4]} 39... Kg5 {[%clk 0:00:01.9]}
40. Bf4+ {[%clk 0:00:01.2]} 40... Kh5 {[%clk 0:00:01.9]} 41. Bg3 {[%clk
0:00:01.3]} 41... Qg6 {[%clk 0:00:01.9]} 42. Bxg4+ {[%clk 0:00:02.2]} 42... Qxg4
{[%clk 0:00:01.9]} 43. Qf1 {[%clk 0:00:02.8]} 43... Nf5 {[%clk 0:00:01.8]} 44.
Kh2 {[%clk 0:00:02.6]} 44... Kg6 {[%clk 0:00:01.2]} 45. Qh3 {[%clk 0:00:02.5]}
45... Qxh3+ {[%clk 0:00:01.2]} 46. Kxh3 {[%clk 0:00:02.8]} 46... Bd1 {[%clk
0:00:01.2]} 47. Bc7 {[%clk 0:00:02]} 47... Ng7 {[%clk 0:00:01]} 48. Kg3 {[%clk
0:00:02]} 48... Ne6 {[%clk 0:00:01]} 49. Bb8 {[%clk 0:00:01.7]} 49... a6 {[%clk
0:00:01.5]} 50. f4 {[%clk 0:00:01.2]} 50... b5 {[%clk 0:00:01.6]} 51. axb5
{[%clk 0:00:01.4]} 51... axb5 {[%clk 0:00:02.5]} 52. b4 {[%clk 0:00:02.3]} 52...
Ng7 {[%clk 0:00:02.4]} 53. Nb1 {[%clk 0:00:02.3]} 53... Nf5+ {[%clk 0:00:02.5]}
54. Kf2 {[%clk 0:00:03]} 54... Bb3 {[%clk 0:00:02.9]} 55. Nc3 {[%clk 0:00:03.6]}
55... Bc4 {[%clk 0:00:03.6]} 56. Ne2 {[%clk 0:00:03.8]} 56... Bxe2 {[%clk
0:00:02.9]} 57. Kxe2 {[%clk 0:00:04.6]} 57... Kh5 {[%clk 0:00:03.8]} 58. Kf2
{[%clk 0:00:05.3]} 58... Kg4 {[%clk 0:00:04.3]} 59. Be5 {[%clk 0:00:05.5]} 59...
Kh3 {[%clk 0:00:04.4]} 60. Bf6 {[%clk 0:00:04.4]} 60... Nh6 {[%clk 0:00:04.7]}
61. Ke2 {[%clk 0:00:02.1]} 61... Ng4 {[%clk 0:00:05.6]} 62. Bg5 {[%clk
0:00:02.3]} 62... f6 {[%clk 0:00:04.9]} 63. Kd2 {[%clk 0:00:01.1]} 63... fxg5
{[%clk 0:00:04.4]} 64. fxg5 {[%clk 0:00:01.9]} 64... Kh4 {[%clk 0:00:05]} 0-1

[Event "Early-Titled-Tuesday-Blitz-May-28-2024"]
[Site "Chess.com"]
[Date "2024.05.28"]
[Round "6"]
[White "DumbKing75"]
[Black "PeshkaCh"]
[Result "1-0"]
[WhiteElo "2691"]
[BlackElo "2867"]
[TimeControl "180+1"]
[EndTime "9:08:54 PDT"]
[Termination "DumbKing75 won by checkmate"]

1. e4 {[%clk 0:03:00.9]} 1... e5 {[%clk 0:02:59.4]} 2. Nf3 {[%clk 0:03:00.8]}
2... Nc6 {[%clk 0:02:59.3]} 3. Bb5 {[%clk 0:03:00.8]} 3... a6 {[%clk 0:02:59.5]}
4. Bxc6 {[%clk 0:03:00]} 4... dxc6 {[%clk 0:02:59.5]} 5. O-O {[%clk 0:02:58.9]}
5... Bd6 {[%clk 0:02:59.8]} 6. d4 {[%clk 0:02:55.7]} 6... exd4 {[%clk
0:03:00.7]} 7. Qxd4 {[%clk 0:02:56.4]} 7... f6 {[%clk 0:03:01.4]} 8. Be3 {[%clk
0:02:56.4]} 8... Ne7 {[%clk 0:03:01.4]} 9. Nbd2 {[%clk 0:02:56.8]} 9... O-O
{[%clk 0:03:02]} 10. Nc4 {[%clk 0:02:52.3]} 10... Be6 {[%clk 0:02:38.4]} 11.
Nxd6 {[%clk 0:02:43.5]} 11... cxd6 {[%clk 0:02:39.3]} 12. Rad1 {[%clk
0:02:36.6]} 12... d5 {[%clk 0:02:39.1]} 13. Qb4 {[%clk 0:01:49.9]} 13... Qd7
{[%clk 0:02:19.2]} 14. Bc5 {[%clk 0:01:20.9]} 14... Rfe8 {[%clk 0:02:18.3]} 15.
c4 {[%clk 0:01:19.3]} 15... Bg4 {[%clk 0:01:31.8]} 16. Bxe7 {[%clk 0:01:18.3]}
16... Bxf3 {[%clk 0:01:17.1]} 17. gxf3 {[%clk 0:01:19.2]} 17... Rxe7 {[%clk
0:01:16.8]} 18. cxd5 {[%clk 0:01:19.5]} 18... Re5 {[%clk 0:01:05.1]} 19. Qb3
{[%clk 0:00:47.7]} 19... Kh8 {[%clk 0:00:52.1]} 20. dxc6 {[%clk 0:00:26.9]}
20... Qxc6 {[%clk 0:00:52.4]} 21. Rd5 {[%clk 0:00:20.6]} 21... Rxd5 {[%clk
0:00:45.8]} 22. Qxd5 {[%clk 0:00:21.5]} 22... Qb6 {[%clk 0:00:45]} 23. Rd1
{[%clk 0:00:18.9]} 23... h6 {[%clk 0:00:42.9]} 24. b3 {[%clk 0:00:17.6]} 24...
Rc8 {[%clk 0:00:40.7]} 25. Kg2 {[%clk 0:00:17.4]} 25... Qb4 {[%clk 0:00:31.3]}
26. Qd4 {[%clk 0:00:15.9]} 26... Qb5 {[%clk 0:00:28.2]} 27. Qd5 {[%clk
0:00:14.8]} 27... Qb4 {[%clk 0:00:23.6]} 28. Qe6 {[%clk 0:00:10.9]} 28... Qc5
{[%clk 0:00:19.6]} 29. Rd7 {[%clk 0:00:09.1]} 29... Qg5+ {[%clk 0:00:15.5]} 30.
Qg4 {[%clk 0:00:09.4]} 30... Rc2 {[%clk 0:00:15]} 31. Qxg5 {[%clk 0:00:08.3]}
31... hxg5 {[%clk 0:00:15.9]} 32. a4 {[%clk 0:00:06.4]} 32... b5 {[%clk
0:00:09.8]} 33. axb5 {[%clk 0:00:06]} 33... axb5 {[%clk 0:00:10.7]} 34. Rd5
{[%clk 0:00:06.5]} 34... Kh7 {[%clk 0:00:09.9]} 35. Rxb5 {[%clk 0:00:06.7]}
35... Rb2 {[%clk 0:00:09.8]} 36. Kg3 {[%clk 0:00:06.6]} 36... Kg6 {[%clk
0:00:10]} 37. b4 {[%clk 0:00:06.1]} 37... Rb3 {[%clk 0:00:10.4]} 38. Rb7 {[%clk
0:00:06.5]} 38... Rb2 {[%clk 0:00:10.5]} 39. h3 {[%clk 0:00:07]} 39... Rb1
{[%clk 0:00:10.7]} 40. b5 {[%clk 0:00:07.6]} 40... Rg1+ {[%clk 0:00:10.5]} 41.
Kh2 {[%clk 0:00:08.3]} 41... Rb1 {[%clk 0:00:11.4]} 42. Kg2 {[%clk 0:00:09.2]}
42... Rb3 {[%clk 0:00:10.9]} 43. b6 {[%clk 0:00:09.5]} 43... Rb1 {[%clk
0:00:10.9]} 44. Kg3 {[%clk 0:00:10.1]} 44... Rg1+ {[%clk 0:00:10.7]} 45. Kh2
{[%clk 0:00:10.8]} 45... Rb1 {[%clk 0:00:11.6]} 46. Rb8 {[%clk 0:00:11.4]} 46...
Rb2 {[%clk 0:00:10.1]} 47. Kg2 {[%clk 0:00:11.3]} 47... Rb1 {[%clk 0:00:10.7]}
48. b7 {[%clk 0:00:09.2]} 48... Kh7 {[%clk 0:00:07.6]} 49. f4 {[%clk 0:00:07.6]}
49... gxf4 {[%clk 0:00:07.4]} 50. Kf3 {[%clk 0:00:08.2]} 50... g5 {[%clk
0:00:02.1]} 51. Kg4 {[%clk 0:00:08.3]} 51... Kg7 {[%clk 0:00:02.4]} 52. h4
{[%clk 0:00:05.2]} 52... gxh4 {[%clk 0:00:02.5]} 53. Kxh4 {[%clk 0:00:06.1]}
53... Rb3 {[%clk 0:00:02.1]} 54. Kg4 {[%clk 0:00:06.3]} 54... f3 {[%clk
0:00:01.6]} 55. Kf4 {[%clk 0:00:06.8]} 55... Kh7 {[%clk 0:00:02]} 56. Kg4 {[%clk
0:00:06.3]} 56... Kg7 {[%clk 0:00:02.3]} 57. Kf5 {[%clk 0:00:06.9]} 57... Rb5+
{[%clk 0:00:02]} 58. Ke6 {[%clk 0:00:07.4]} 58... Rb2 {[%clk 0:00:02.1]} 59. Kf5
{[%clk 0:00:06.1]} 59... Rb5+ {[%clk 0:00:01.9]} 60. Ke6 {[%clk 0:00:06.4]}
60... Rb2 {[%clk 0:00:01.9]} 61. Kd5 {[%clk 0:00:07]} 61... Rd2+ {[%clk
0:00:01.7]} 62. Kc4 {[%clk 0:00:07]} 62... Rc2+ {[%clk 0:00:02.4]} 63. Kb3
{[%clk 0:00:07]} 63... Rc7 {[%clk 0:00:01.7]} 64. Rg8+ {[%clk 0:00:04.7]} 64...
Kxg8 {[%clk 0:00:01.8]} 65. b8=Q+ {[%clk 0:00:05.6]} 65... Kg7 {[%clk
0:00:01.6]} 66. Qxc7+ {[%clk 0:00:06.1]} 66... Kg6 {[%clk 0:00:02.5]} 67. Qg3+
{[%clk 0:00:06.7]} 67... Kh5 {[%clk 0:00:02.4]} 68. Qxf3+ {[%clk 0:00:07.6]}
68... Kg5 {[%clk 0:00:02.7]} 69. Qf5+ {[%clk 0:00:08]} 69... Kh6 {[%clk
0:00:03.1]} 70. Qxf6+ {[%clk 0:00:08.6]} 70... Kh7 {[%clk 0:00:04]} 71. Qg5
{[%clk 0:00:08.8]} 71... Kh8 {[%clk 0:00:04.1]} 72. e5 {[%clk 0:00:09.7]} 72...
Kh7 {[%clk 0:00:05]} 73. e6 {[%clk 0:00:10.6]} 73... Kh8 {[%clk 0:00:05.9]} 74.
e7 {[%clk 0:00:11.2]} 74... Kh7 {[%clk 0:00:06.6]} 75. f3 {[%clk 0:00:12.1]}
75... Kh8 {[%clk 0:00:07]} 76. e8=Q+ {[%clk 0:00:13]} 76... Kh7 {[%clk
0:00:07.9]} 77. Qeg8# {[%clk 0:00:13.9]} 1-0

[Event "Early-Titled-Tuesday-Blitz-May-28-2024"]
[Site "Chess.com"]
[Date "2024.05.28"]
[Round "6"]
[White "Alphafischer2019"]
[Black "FGHSMN"]
[Result "0-1"]
[WhiteElo "2693"]
[BlackElo "2898"]
[TimeControl "180+1"]
[EndTime "9:08:56 PDT"]
[Termination "FGHSMN won by resignation"]

1. Nf3 {[%clk 0:03:00.9]} 1... e6 {[%clk 0:02:32.7]} 2. g3 {[%clk 0:03:00]} 2...
g5 {[%clk 0:02:28.9]} 3. d4 {[%clk 0:02:49.5]} 3... g4 {[%clk 0:02:29]} 4. Ne5
{[%clk 0:02:49.7]} 4... h5 {[%clk 0:02:29.7]} 5. h4 {[%clk 0:02:26.1]} 5... Bg7
{[%clk 0:02:29.6]} 6. Bg2 {[%clk 0:02:07.4]} 6... d6 {[%clk 0:02:26.3]} 7. Nc4
{[%clk 0:02:07]} 7... d5 {[%clk 0:02:26.1]} 8. Ne5 {[%clk 0:02:06.8]} 8... Nd7
{[%clk 0:02:24.2]} 9. Nxd7 {[%clk 0:02:04]} 9... Bxd7 {[%clk 0:02:25.1]} 10. c4
{[%clk 0:01:51.9]} 10... c6 {[%clk 0:02:11.4]} 11. Nc3 {[%clk 0:01:51.3]} 11...
Ne7 {[%clk 0:02:06.4]} 12. O-O {[%clk 0:01:34.8]} 12... dxc4 {[%clk 0:02:00.2]}
13. e4 {[%clk 0:01:30.6]} 13... Ng6 {[%clk 0:01:44.8]} 14. e5 {[%clk 0:01:16.8]}
14... f5 {[%clk 0:01:44.3]} 15. exf6 {[%clk 0:01:12.1]} 15... Qxf6 {[%clk
0:01:44.2]} 16. Bg5 {[%clk 0:00:58.6]} 16... Qxd4 {[%clk 0:01:31.7]} 17. Qxd4
{[%clk 0:00:55.3]} 17... Bxd4 {[%clk 0:01:30.6]} 18. Rad1 {[%clk 0:00:56]} 18...
e5 {[%clk 0:01:28.8]} 19. Ne4 {[%clk 0:00:52.9]} 19... Be6 {[%clk 0:01:23.1]}
20. Nd6+ {[%clk 0:00:43.3]} 20... Kd7 {[%clk 0:01:22.7]} 21. Nxb7 {[%clk
0:00:43.4]} 21... Kc7 {[%clk 0:01:15.3]} 22. Na5 {[%clk 0:00:43.4]} 22... Bd5
{[%clk 0:01:12.3]} 23. b3 {[%clk 0:00:31.7]} 23... c3 {[%clk 0:01:12.1]} 24. Nc4
{[%clk 0:00:29.4]} 24... Bxc4 {[%clk 0:01:09.6]} 25. bxc4 {[%clk 0:00:28.9]}
25... Rab8 {[%clk 0:01:08.4]} 26. Be4 {[%clk 0:00:29.4]} 26... Nf8 {[%clk
0:01:00.6]} 27. Be7 {[%clk 0:00:20.4]} 27... Ne6 {[%clk 0:00:59.6]} 28. c5
{[%clk 0:00:19.6]} 28... Rb2 {[%clk 0:00:57.4]} 29. Bd6+ {[%clk 0:00:18.8]}
29... Kb7 {[%clk 0:00:53.6]} 30. Rb1 {[%clk 0:00:11.7]} 30... Bxc5 {[%clk
0:00:51.3]} 31. Bxe5 {[%clk 0:00:11.4]} 31... Rf8 {[%clk 0:00:24.8]} 32. Rxb2+
{[%clk 0:00:11.5]} 32... cxb2 {[%clk 0:00:24.8]} 33. Bxb2 {[%clk 0:00:12.4]}
33... Nc7 {[%clk 0:00:21.5]} 34. Kg2 {[%clk 0:00:11.1]} 34... Nd5 {[%clk
0:00:21.4]} 35. Bg7 {[%clk 0:00:09]} 35... Rf7 {[%clk 0:00:20.7]} 36. Bh6 {[%clk
0:00:08.7]} 36... Kc7 {[%clk 0:00:18.9]} 37. Bg5 {[%clk 0:00:07.5]} 37... Rg7
{[%clk 0:00:15.4]} 38. Rc1 {[%clk 0:00:06.5]} 38... Kb6 {[%clk 0:00:14.4]} 39.
Rb1+ {[%clk 0:00:06.5]} 39... Ka5 {[%clk 0:00:08.2]} 40. Rc1 {[%clk 0:00:07.1]}
40... Kb6 {[%clk 0:00:05.6]} 41. Rb1+ {[%clk 0:00:07.1]} 41... Kc7 {[%clk
0:00:05.1]} 42. Rc1 {[%clk 0:00:07.4]} 42... Kd6 {[%clk 0:00:03.2]} 43. Rd1
{[%clk 0:00:05.6]} 43... Bb6 {[%clk 0:00:03.1]} 44. Bf4+ {[%clk 0:00:05.4]}
44... Ke6 {[%clk 0:00:03.4]} 45. Bg5 {[%clk 0:00:05.3]} 45... Rd7 {[%clk
0:00:03.6]} 46. Re1 {[%clk 0:00:05.3]} 46... Kd6 {[%clk 0:00:03.6]} 47. Bf5
{[%clk 0:00:05.2]} 47... Rf7 {[%clk 0:00:03.6]} 48. Re6+ {[%clk 0:00:04.8]}
48... Kc7 {[%clk 0:00:04]} 49. Rh6 {[%clk 0:00:05]} 49... Rxf5 {[%clk
0:00:04.1]} 50. Rh7+ {[%clk 0:00:05.4]} 50... Kd6 {[%clk 0:00:04.2]} 51. Rxh5
{[%clk 0:00:04.1]} 51... Rxf2+ {[%clk 0:00:04.1]} 52. Kh1 {[%clk 0:00:04.9]}
52... Rf1+ {[%clk 0:00:04.5]} 53. Kg2 {[%clk 0:00:05.5]} 53... Rf2+ {[%clk
0:00:04.4]} 54. Kh1 {[%clk 0:00:06.2]} 54... Rf3 {[%clk 0:00:05.3]} 55. Rh6+
{[%clk 0:00:06]} 55... Kd7 {[%clk 0:00:04.6]} 56. Kh2 {[%clk 0:00:06.7]} 56...
Bc7 {[%clk 0:00:04.5]} 57. Rh7+ {[%clk 0:00:07.6]} 57... Kc8 {[%clk 0:00:04.6]}
58. h5 {[%clk 0:00:07.9]} 58... Bxg3+ {[%clk 0:00:05]} 59. Kh1 {[%clk
0:00:08.6]} 59... Rf2 {[%clk 0:00:04.9]} 60. h6 {[%clk 0:00:08.5]} 60... Rh2+
{[%clk 0:00:05.5]} 61. Kg1 {[%clk 0:00:08.9]} 61... Rh3 {[%clk 0:00:05.5]} 62.
Rh8+ {[%clk 0:00:09.3]} 62... Kb7 {[%clk 0:00:05.9]} 63. h7 {[%clk 0:00:09.3]}
63... Nc3 {[%clk 0:00:06.4]} 64. Kg2 {[%clk 0:00:10]} 64... Nd1 {[%clk
0:00:05.6]} 65. Bf6 {[%clk 0:00:05.3]} 65... Ne3+ {[%clk 0:00:05]} 66. Kg1
{[%clk 0:00:06]} 66... Bh2+ {[%clk 0:00:05.5]} 67. Kf2 {[%clk 0:00:05.6]} 67...
g3+ {[%clk 0:00:06.2]} 68. Ke2 {[%clk 0:00:02.3]} 68... g2 {[%clk 0:00:07.1]}
69. Rb8+ {[%clk 0:00:00.8]} 69... Kxb8 {[%clk 0:00:06.8]} 70. h8=Q+ {[%clk
0:00:01.4]} 70... Rxh8 {[%clk 0:00:06.8]} 71. Bxh8 {[%clk 0:00:01.7]} 71... g1=Q
{[%clk 0:00:07.7]} 72. Be5+ {[%clk 0:00:02.6]} 72... Bxe5 {[%clk 0:00:07]} 0-1